bitfinex/quotes_SOLUSD_20241226
["timestamp","ask_amount","ask_price","bid_price","bid_amount"]
[1735232024035,1.6525,190.61,190.56,16.53635104]
[1735232024346,1.6525,190.61,190.57,17.32323831]
[1735232024547,6.2552,190.65,190.59,40.43872504]
[1735232024775,7.9077,190.65,190.61,16.53635104]
[1735232025258,7.9077,190.65,190.59,16.53635104]
[1735232026153,7.9077,190.65,190.6,0.91224409]
[1735232026453,7.9077,190.65,190.6,0.12549]
[1735232026650,0.81265426,190.73,190.62,36.53635104]
[1735232026856,8.15715432,190.74,190.73,23.902374]
[1735232027158,8.15715432,190.74,190.73,24.68853368]
[1735232027756,1.6525,190.91,190.73,24.68853368]
[1735232027757,2.12694343,190.9,190.73,44.29284114]
[1735232027964,0.81265426,190.89,190.78,16.53635104]
[1735232028253,0.81265426,190.89,190.78,17.32231554]
[1735232029637,0.81265426,190.89,190.78,16.53635104]
[1735232030035,2.12694343,190.9,190.82,16.53635104]
[1735232031358,0.81265426,190.89,190.78,16.53635104]
[1735232031559,0.81265426,190.89,190.78,23.902374]
[1735232033053,0.81265426,190.89,190.78,50.31552891]
[1735232033263,0.81265426,190.89,190.78,51.10150031]
[1735232033464,0.81265426,190.89,190.78,24.6883454]
[1735232033838,0.81265426,190.89,190.75,26.41315491]
[1735232034257,0.81265426,190.89,190.74,27.19916385]
[1735232034746,20.0,190.85,190.74,27.19916385]
[1735232035064,0.81265426,190.84,190.74,27.19916385]
[1735232035567,0.81265426,190.84,190.75,26.41315491]
[1735232035865,0.81265426,190.84,190.75,27.19929736]
[1735232036771,0.81265426,190.84,190.75,26.41315491]
[1735232037128,0.81265426,190.84,190.71,0.7861506]
[1735232037330,0.81265426,190.84,190.74,26.41315491]
[1735232037533,0.81265426,190.84,190.75,26.41315491]
[1735232039162,0.81265426,190.84,190.76,26.41315491]
[1735232041947,0.81265426,190.84,190.77,26.41315491]
[1735232042660,6.5852,190.83,190.74,26.41315491]
[1735232042962,20.0,190.8,190.73,26.41315491]
[1735232043262,0.81265426,190.79,190.72,26.41315491]
[1735232043855,20.0,190.8,190.72,26.41315491]
[1735232044644,20.0,190.8,190.7,26.41315491]
[1735232044973,20.0,190.8,190.68,26.41315491]
[1735232045337,20.0,190.8,190.7,26.41315491]
[1735232046289,20.0,190.8,190.73,26.41315491]
[1735232046463,20.0,190.8,190.74,26.41315491]
[1735232046641,20.0,190.8,190.75,26.41315491]
[1735232047433,20.0,190.8,190.74,26.41315491]
[1735232049457,20.0,190.8,190.75,26.41315491]
[1735232049660,20.0,190.8,190.74,26.41315491]
[1735232050461,1.5259,190.82,190.74,26.41315491]
[1735232051164,1.5259,190.82,190.76,26.41315491]
[1735232051478,1.5259,190.82,190.8,26.41315491]
[1735232051638,1.5259,190.82,190.78,26.41315491]
[1735232051842,1.5259,190.82,190.77,27.1992701]
[1735232052063,1.5259,190.82,190.75,26.41315491]
[1735232052358,1.5259,190.82,190.75,16.51436145]
[1735232052542,1.5259,190.82,190.77,16.51436145]
[1735232053463,1.5259,190.82,190.74,16.51436145]
[1735232053653,1.5259,190.82,190.76,16.51436145]
[1735232054664,1.5259,190.82,190.74,16.51436145]
[1735232055261,1.5259,190.82,190.75,16.51436145]
[1735232057170,20.0,190.8,190.73,16.51436145]
[1735232057342,20.0,190.8,190.74,16.51436145]
[1735232057670,20.0,190.8,190.73,16.51436145]
[1735232059143,20.0,190.8,190.74,16.51436145]
[1735232059352,20.0,190.8,190.75,16.51436145]
[1735232059669,1.5259,190.82,190.79,16.51436145]
[1735232060169,1.5424,190.86,190.79,16.51436145]
[1735232060853,1.5424,190.86,190.78,16.51436145]
[1735232061155,1.5424,190.86,190.77,0.12549]
[1735232061366,20.0,190.84,190.77,23.902374]
[1735232062073,20.0,190.84,190.77,16.63985145]
[1735232062363,20.0,190.84,190.77,16.51436145]
[1735232063149,20.0,190.84,190.76,16.51436145]
[1735232063347,1.5424,190.86,190.76,16.51436145]
[1735232063547,20.0,190.84,190.76,16.51436145]
[1735232063771,20.0,190.84,190.77,16.51436145]
[1735232064053,20.0,190.84,190.76,16.51436145]
[1735232065273,20.0,190.84,190.77,16.51436145]
[1735232065953,20.0,190.84,190.75,17.30042733]
[1735232066271,20.0,190.84,190.74,16.51436145]
[1735232066972,20.0,190.84,190.73,40.29124545]
[1735232067474,20.0,190.84,190.72,16.51436145]
[1735232068472,20.0,190.84,190.73,16.51436145]
[1735232069072,22.09419132,190.84,190.73,16.51436145]
[1735232069581,22.09419132,190.84,190.72,16.51436145]
[1735232071783,22.09419132,190.84,190.73,16.51436145]
[1735232073854,22.09419132,190.84,190.72,16.51436145]
[1735232074055,22.09419132,190.84,190.7,8.0490251]
[1735232074056,20.0,190.8,190.7,8.0490251]
[1735232074270,20.0,190.76,190.7,8.0490251]
[1735232074657,20.0,190.76,190.67,0.78655051]
[1735232074963,20.0,190.76,190.67,17.30091196]
[1735232075364,20.0,190.76,190.65,17.30080174]
[1735232075562,20.0,190.76,190.66,16.51436145]
[1735232075758,8.0452,190.79,190.71,16.51436145]
[1735232076057,8.0452,190.79,190.72,16.51436145]
[1735232076674,8.0452,190.79,190.71,17.30063056]
[1735232078153,8.0452,190.79,190.7,8.0490251]
[1735232078555,20.0,190.76,190.7,8.0490251]
[1735232078760,20.0,190.76,190.69,16.51436145]
[1735232079376,20.0,190.76,190.68,25.34980555]
[1735232079590,20.0,190.76,190.68,8.0490251]
[1735232080663,20.0,190.76,190.68,24.56338655]
[1735232080862,20.0,190.76,190.68,16.51436145]
[1735232081075,20.0,190.76,190.67,8.83558411]
[1735232081374,20.0,190.76,190.67,8.0490251]
[1735232081563,20.0,190.76,190.66,24.56338655]
[1735232083060,20.0,190.76,190.67,17.30087113]
[1735232083258,20.0,190.76,190.68,16.51436145]
[1735232083460,20.0,190.76,190.69,0.78634616]
[1735232084685,20.0,190.76,190.66,16.51436145]
[1735232085180,20.0,190.76,190.67,0.12549]
[1735232085865,20.0,190.76,190.67,16.63985145]
[1735232086083,8.0452,190.79,190.71,16.63985145]
[1735232086286,8.0452,190.79,190.72,0.78622341]
[1735232086867,8.0452,190.79,190.69,16.51436145]
[1735232089768,8.0452,190.79,190.69,0.12549]
[1735232089969,8.0452,190.79,190.69,16.63985145]
[1735232090494,8.0452,190.79,190.69,0.12549]
[1735232090796,20.0,190.76,190.65,17.30071298]
[1735232091177,1.5041,190.75,190.63,25.34987371]
[1735232091679,1.5041,190.75,190.62,16.51436145]
[1735232091878,20.0,190.71,190.62,16.51436145]
[1735232092060,20.0,190.71,190.63,23.902374]
[1735232092382,6.6083,190.74,190.65,16.51436145]
[1735232092583,6.6083,190.74,190.64,17.30096721]
[1735232094792,6.6083,190.74,190.65,16.51436145]
[1735232095091,6.6083,190.74,190.64,0.78660576]
[1735232096296,6.6083,190.74,190.64,17.30096721]
[1735232096487,6.6083,190.74,190.67,16.51436145]
[1735232096690,6.6083,190.74,190.67,0.78641521]
[1735232096902,6.6083,190.74,190.66,16.51436145]
[1735232097075,6.6083,190.74,190.66,0.12549]
[1735232097277,6.6083,190.74,190.66,23.902374]
[1735232097796,6.6083,190.74,190.65,40.29124545]
[1735232098189,6.6083,190.74,190.66,16.63985145]
[1735232098367,6.6083,190.74,190.66,40.41673545]
[1735232099402,6.6083,190.74,190.65,17.30084271]
[1735232099907,6.6083,190.74,190.66,23.902374]
[1735232101098,6.6083,190.74,190.67,0.78647831]
[1735232101275,6.6083,190.74,190.69,40.41673545]
[1735232101473,1.5041,190.75,190.7,17.3006937]
[1735232101995,1.5041,190.75,190.7,0.78633225]
[1735232102192,1.5041,190.75,190.66,10.57518981]
[1735232102603,1.5041,190.75,190.67,0.78642056]
[1735232103393,1.5041,190.75,190.7,0.12549]
[1735232103900,1.5041,190.75,190.69,0.78631997]
[1735232104509,1.5041,190.75,190.66,10.57518981]
[1735232104722,1.5041,190.75,190.67,0.78639664]
[1735232104888,1.5041,190.75,190.67,11.36158645]
[1735232105087,1.5041,190.75,190.68,10.57518981]
[1735232105291,1.5041,190.75,190.67,11.36158645]
[1735232105592,1.5041,190.75,190.68,10.57518981]
[1735232105790,1.5041,190.75,190.67,11.36158637]
[1735232106003,1.5041,190.75,190.68,10.57518981]
[1735232106201,1.5041,190.75,190.69,10.57518981]
[1735232106515,1.5041,190.75,190.7,11.36156414]
[1735232106882,1.5041,190.75,190.7,0.78637433]
[1735232107087,1.5041,190.75,190.7,0.78635266]
[1735232107314,1.5041,190.75,190.69,10.57518981]
[1735232108007,1.5041,190.75,190.7,10.57518981]
[1735232108838,1.5041,190.75,190.69,10.57518981]
[1735232109594,1.5041,190.75,190.7,10.57518981]
[1735232110492,1.5041,190.75,190.65,20.78636036]
[1735232110709,1.5041,190.75,190.65,0.78636036]
[1735232111021,1.5041,190.75,190.66,10.57518981]
[1735232111322,1.5041,190.75,190.73,10.57518981]
[1735232111506,8.1065,190.79,190.74,10.57518981]
[1735232112116,8.1065,190.79,190.72,10.57518981]
[1735232112414,8.1065,190.79,190.71,0.91167458]
[1735232112415,8.1065,190.79,190.71,10.70067981]
[1735232112795,8.1065,190.79,190.74,10.57518981]
[1735232114223,8.1065,190.79,190.74,16.5143031]
[1735232115017,1.627,190.79,190.76,16.5143031]
[1735232115205,1.627,190.79,190.75,17.42597977]
[1735232115820,6.016,190.83,190.76,16.5143031]
[1735232116027,6.016,190.83,190.77,0.78600991]
[1735232116511,1.5635,190.84,190.79,16.5143031]
[1735232117198,1.5635,190.84,190.78,40.4166771]
[1735232117601,1.5635,190.84,190.79,0.78592565]
[1735232117805,1.5635,190.84,190.79,17.30022875]
[1735232118599,1.5635,190.84,190.8,40.4166771]
[1735232118806,1.5635,190.84,190.81,17.30019121]
[1735232119018,1.5635,190.84,190.81,0.12549]
[1735232119418,1.5635,190.84,190.81,23.902374]
[1735232119625,1.5635,190.84,190.81,41.2025643]
[1735232120122,6.016,190.87,190.82,16.5143031]
[1735232121312,6.016,190.87,190.81,16.6397931]
[1735232124326,6.016,190.87,190.83,16.5143031]
[1735232124532,6.016,190.87,190.82,17.30012386]
[1735232124734,6.016,190.87,190.81,16.5143031]
[1735232124910,6.016,190.87,190.81,23.902374]
[1735232125512,6.016,190.87,190.78,0.785879]
[1735232125724,6.016,190.87,190.79,16.5143031]
[1735232126237,6.016,190.87,190.8,17.30022575]
[1735232126536,6.016,190.87,190.81,16.5143031]
[1735232127231,6.016,190.87,190.82,16.5143031]
[1735232128719,6.016,190.87,190.81,16.5143031]
[1735232129342,6.016,190.87,190.81,23.902374]
[1735232130558,6.016,190.87,190.82,17.30012649]
[1735232130951,1.5635,190.88,190.82,17.30012649]
[1735232130952,1.5635,190.88,190.83,40.4166771]
[1735232131152,1.5635,190.88,190.84,17.29998984]
[1735232132064,1.5635,190.88,190.85,23.902374]
[1735232132263,2.12694343,190.9,190.85,40.4166771]
[1735232132443,2.12694343,190.9,190.86,16.5143031]
[1735232132737,2.12694343,190.9,190.8,16.5143031]
[1735232132738,2.12694343,190.9,190.88,16.5143031]
[1735232133151,2.12694343,190.9,190.89,16.6397931]
[1735232133445,2.12694343,190.9,190.89,17.42533492]
[1735232134751,2.12694343,190.9,190.89,33.93963802]
[1735232134950,2.12694343,190.9,190.89,17.42533492]
[1735232135252,2.12694343,190.9,190.89,0.91103182]
[1735232135745,1.5227,190.98,190.89,24.68791582]
[1735232136823,1.5227,190.98,190.89,0.78554182]
[1735232137048,1.5227,190.98,190.9,0.12549]
[1735232137653,1.5227,190.98,190.89,23.902374]
[1735232138129,1.5227,190.98,190.94,23.902374]
[1735232138334,6.3802,191.02,190.96,0.12549]
[1735232138537,1.5227,191.03,190.96,34.45578748]
[1735232139445,1.5227,191.03,190.98,23.902374]
[1735232139823,6.3802,191.06,190.98,10.67890348]
[1735232140057,6.3802,191.06,190.98,34.45578748]
[1735232140352,6.3802,191.06,190.98,23.902374]
[1735232142436,6.3802,191.06,190.96,16.47322015]
[1735232142655,6.3802,191.06,190.97,16.47322015]
[1735232142947,6.3802,191.06,190.98,23.902374]
[1735232143335,6.3802,191.06,190.98,40.37559415]
[1735232143533,1.5517,191.07,191.0,40.37559415]
[1735232144257,1.5517,191.07,190.96,36.47322015]
[1735232144556,1.5517,191.07,190.97,17.25835548]
[1735232145341,1.5517,191.07,190.98,0.12549]
[1735232146748,1.5517,191.07,190.98,16.59871015]
[1735232147333,1.5517,191.07,190.98,0.12549]
[1735232147753,1.5517,191.07,191.0,0.12549]
[1735232150949,1.5517,191.07,191.0,16.59871015]
[1735232151138,1.5517,191.07,191.02,0.12549]
[1735232151341,20.0,191.08,191.02,0.12549]
[1735232152359,1.5517,191.11,191.03,16.47322015]
[1735232152562,6.3394,191.15,191.05,16.47322015]
[1735232152732,7.8911,191.15,191.05,16.47322015]
[1735232152934,7.8911,191.15,191.04,16.59871015]
[1735232153235,7.8911,191.15,191.04,16.47322015]
[1735232153484,7.8911,191.15,191.03,16.47322015]
[1735232153765,7.8911,191.15,191.01,0.78484568]
[1735232153766,20.0,191.12,191.01,16.47322015]
[1735232153967,20.0,191.12,191.02,16.47322015]
[1735232154355,20.0,191.12,191.05,16.47322015]
[1735232154735,20.0,191.12,191.04,16.47322015]
[1735232156269,20.0,191.12,191.05,16.47322015]
[1735232156462,20.0,191.12,191.04,16.47322015]
[1735232156838,20.0,191.12,191.02,16.47322015]
[1735232157575,20.0,191.12,191.02,0.12549]
[1735232157869,20.0,191.12,191.02,16.59871015]
[1735232158243,20.0,191.12,191.03,16.47322015]
[1735232158445,20.0,191.12,191.04,16.47322015]
[1735232158672,20.0,191.12,191.03,16.47322015]
[1735232158853,20.0,191.12,191.02,17.38364368]
[1735232160144,20.0,191.12,191.01,10.53942589]
[1735232160470,20.0,191.12,191.0,10.53942589]
[1735232161049,20.0,191.12,190.95,7.33203286]
[1735232161350,20.0,191.12,190.99,10.53942589]
[1735232161751,20.0,191.12,191.0,11.32452521]
[1735232161954,20.0,191.12,191.01,10.53942589]
[1735232162860,20.0,191.12,191.0,0.78498442]
[1735232163070,20.0,191.08,190.98,10.53942589]
[1735232163371,20.0,191.08,191.0,10.53942589]
[1735232163750,20.0,191.08,190.98,10.53942589]
[1735232164074,8.0277,191.11,190.99,10.53942589]
[1735232164366,20.0,191.08,190.99,10.53942589]
[1735232165883,20.0,191.08,190.95,0.78500469]
[1735232166063,20.0,191.08,191.0,10.53942589]
[1735232166405,8.0277,191.11,191.02,10.53942589]
[1735232166663,8.0277,191.11,191.03,10.53942589]
[1735232166869,8.0277,191.11,191.02,10.53942589]
[1735232168667,8.0277,191.11,191.01,0.78497199]
[1735232168847,8.0277,191.11,191.01,10.53942589]
[1735232169473,8.0277,191.11,190.97,0.78495283]
[1735232169656,8.0277,191.11,191.01,10.53942589]
[1735232171300,8.0277,191.11,190.99,0.78499588]
[1735232171472,8.0277,191.11,190.95,7.52292986]
[1735232171473,20.0,191.08,190.97,10.53942589]
[1735232172483,20.0,191.08,190.98,10.53942589]
[1735232175304,20.0,191.08,190.99,10.53942589]
[1735232176176,20.0,191.08,191.0,11.32452646]
[1735232176488,8.0277,191.11,191.01,10.53942589]
[1735232177404,8.0277,191.11,190.97,0.12549]
[1735232177612,8.0277,191.11,191.0,10.53942589]
[1735232178025,8.0277,191.11,191.01,10.53942589]
[1735232180184,8.0277,191.11,191.0,10.53942589]
[1735232180513,1.5767,191.07,190.97,10.53942589]
[1735232180685,1.5767,191.07,190.98,11.32455237]
[1735232181077,1.5767,191.07,190.98,0.78512648]
[1735232181281,1.5767,191.07,190.97,10.53942589]
[1735232181987,1.5767,191.07,190.98,10.53942589]
[1735232183212,1.5767,191.07,190.99,11.32460357]
[1735232183389,1.5767,191.07,191.0,10.53942589]
[1735232183592,1.5767,191.07,190.93,146.33408079]
[1735232183806,1.5767,191.07,190.94,23.902374]
[1735232184007,1.5767,191.07,190.99,10.53942589]
[1735232184611,1.5767,191.07,191.0,10.53942589]
[1735232184807,1.5767,191.07,190.97,10.53942589]
[1735232185194,1.5767,191.07,191.0,10.53942589]
[1735232185393,1.5767,191.07,191.03,10.53942589]
[1735232185599,1.5767,191.07,191.03,11.32432671]
[1735232186604,1.5767,191.07,191.03,10.53942589]
[1735232188192,1.5767,191.07,191.04,10.53942589]
[1735232188609,1.5767,191.07,191.03,10.53942589]
[1735232189315,1.5767,191.07,190.99,0.7849387]
[1735232189507,1.5767,191.07,191.01,10.53942589]
[1735232189692,1.5767,191.07,191.02,10.53942589]
[1735232191716,1.5767,191.07,191.01,11.32446096]
[1735232192821,1.5767,191.07,191.02,34.44179989]
[1735232193005,1.5767,191.07,191.02,11.32437496]
[1735232193207,1.5767,191.07,191.02,10.53942589]
[1735232193931,1.5767,191.07,191.01,10.53942589]
[1735232194099,1.5767,191.07,190.99,10.53942589]
[1735232194506,1.5767,191.07,191.0,10.53942589]
[1735232195722,1.5767,191.07,190.99,0.78509974]
[1735232196301,1.5767,191.07,190.99,11.32452563]
[1735232197424,1.5767,191.07,191.01,10.53942589]
[1735232197597,1.5767,191.07,191.02,11.32437484]
[1735232197797,1.5767,191.07,191.0,0.9104406]
[1735232197999,1.5767,191.07,191.01,10.53942589]
[1735232198223,1.5767,191.07,191.02,11.32444831]
[1735232199504,1.5767,191.07,191.03,10.53942589]
[1735232201204,1.5767,191.07,191.05,10.53942589]
[1735232201411,6.4097,191.11,191.06,11.32425804]
[1735232201715,6.2719,191.16,191.1,10.53942589]
[1735232202229,6.2719,191.16,191.1,11.32408808]
[1735232202596,6.2719,191.16,191.1,0.78466219]
[1735232202802,6.2719,191.16,191.09,10.53942589]
[1735232203023,6.2719,191.16,191.08,11.32407623]
[1735232203334,1.5535,191.17,191.11,0.12549]
[1735232203631,1.5535,191.17,191.08,0.78455586]
[1735232203815,1.5535,191.17,191.08,11.32398175]
[1735232205614,1.5535,191.17,191.08,0.78455586]
[1735232210037,6.2719,191.16,191.08,0.78455586]
[1735232210212,6.2719,191.16,191.04,0.78472089]
[1735232210710,1.5535,191.12,191.03,8.0490251]
[1735232210933,6.2719,191.11,190.99,18.58845099]
[1735232211135,6.2719,191.11,191.01,11.32442638]
[1735232211832,6.2719,191.11,190.99,0.78499168]
[1735232212030,6.2719,191.11,191.0,10.53942589]
[1735232212429,6.2719,191.11,190.99,11.32441757]
[1735232212618,1.5535,191.1,190.99,11.32441757]
[1735232212941,1.5535,191.1,190.99,0.78499168]
[1735232213317,1.5535,191.1,191.0,10.53942589]
[1735232213518,1.5535,191.1,191.01,0.7850181]
[1735232214919,20.0,191.08,190.97,10.53942589]
[1735232215121,20.0,191.08,190.98,0.78516444]
[1735232215322,20.0,191.08,190.98,11.32459033]
[1735232215522,20.0,191.08,190.99,34.44179989]
[1735232217142,20.0,191.08,190.94,0.78510901]
[1735232217342,20.0,191.08,190.98,10.53942589]
[1735232217643,20.0,191.08,190.95,23.902374]
[1735232217944,6.1271,191.06,190.96,0.78516069]
[1735232218119,6.1271,191.06,190.96,10.53942589]
[1735232218521,6.1271,191.06,190.97,11.32465483]
[1735232219440,6.1271,191.06,190.98,10.53942589]
[1735232219621,6.1271,191.06,190.97,10.53942589]
[1735232220022,6.1271,191.06,190.96,10.53942589]
[1735232220240,1.5252,191.02,190.93,0.78521235]
[1735232220561,1.5252,191.02,190.93,11.32463824]
[1735232220862,1.5252,191.02,190.94,10.53942589]
[1735232221156,1.5252,191.02,190.95,0.78530226]
[1735232221533,1.5252,191.02,190.94,10.53942589]
[1735232221732,1.5252,191.02,190.96,10.53942589]
[1735232221927,1.5252,191.02,190.97,11.32462217]
[1735232222140,1.5252,191.02,190.92,0.12549]
[1735232222447,1.5252,191.02,190.95,10.53942589]
[1735232222633,1.5252,191.02,190.96,0.78524597]
[1735232222833,1.5252,191.02,190.96,11.32467186]
[1735232223029,1.5252,191.02,190.96,0.78524597]
[1735232223625,1.5252,191.02,190.94,10.53942589]
[1735232223827,1.5252,191.02,190.93,10.53942589]
[1735232224130,1.5252,191.02,190.92,10.53942589]
[1735232224528,1.5252,191.02,190.91,11.32468389]
[1735232224736,6.1271,191.01,190.91,11.32468389]
[1735232225057,6.1271,191.01,190.91,0.785258]
[1735232225234,6.1271,191.01,190.91,10.53942589]
[1735232225443,6.1271,191.01,190.92,0.78541401]
[1735232225636,6.1271,191.01,190.92,11.3248399]
[1735232225833,6.1271,191.01,190.92,0.78541401]
[1735232226033,6.1271,191.01,190.91,10.53942589]
[1735232226922,6.1271,191.01,190.89,10.53942589]
[1735232227122,20.0,190.98,190.88,11.32490129]
[1735232227336,1.5252,190.97,190.89,10.53942589]
[1735232227536,1.5252,190.97,190.88,0.7854754]
[1735232227537,1.5252,190.97,190.91,10.53942589]
[1735232227737,1.5252,190.97,190.92,11.32486102]
[1735232228654,6.1271,190.96,190.87,0.78541496]
[1735232229954,6.1271,190.96,190.86,10.53942589]
[1735232231953,6.1271,190.96,190.87,11.32506725]
[1735232232252,6.1271,190.96,190.88,10.53942589]
[1735232232658,6.1271,190.96,190.83,23.902374]
[1735232232845,6.1271,190.96,190.91,23.902374]
[1735232233046,1.5252,190.97,190.94,10.53942589]
[1735232233243,1.5252,190.97,190.93,10.53942589]
[1735232233558,1.5252,190.97,190.92,10.53942589]
[1735232236244,1.5252,190.97,190.94,10.53942589]
[1735232236446,1.51,191.02,190.96,34.44179989]
[1735232236666,6.2199,191.05,191.01,10.53942589]
[1735232236964,1.51,191.07,190.92,6.2108]
[1735232236965,1.51,191.07,191.02,11.32442095]
[1735232237459,1.51,191.07,191.03,10.53942589]
[1735232237672,6.2199,191.1,191.05,10.53942589]
[1735232238157,6.2199,191.1,191.04,17.24704898]
[1735232238364,6.2199,191.1,191.03,16.4621668]
[1735232238573,6.2199,191.1,191.01,16.4621668]
[1735232238760,6.2199,191.1,191.02,17.24717629]
[1735232239062,6.2199,191.1,191.03,40.3645408]
[1735232239364,6.2199,191.1,191.04,17.24702375]
[1735232239659,6.2199,191.1,191.04,0.78485695]
[1735232239860,6.2199,191.1,191.02,16.4621668]
[1735232241062,6.2199,191.1,191.0,16.4621668]
[1735232241637,6.2199,191.1,191.01,0.78503414]
[1735232241837,6.2199,191.1,191.02,16.4621668]
[1735232242035,6.2199,191.1,191.0,16.4621668]
[1735232242577,6.2199,191.1,191.01,0.78502658]
[1735232243173,6.2199,191.1,191.01,17.24719338]
[1735232244763,6.2199,191.1,191.01,0.78502658]
[1735232245468,6.2199,191.1,191.01,17.24719338]
[1735232245670,6.2199,191.1,191.0,16.4621668]
[1735232245866,6.2199,191.1,190.99,16.4621668]
[1735232246076,20.0,191.07,190.97,17.24721324]
[1735232246571,1.6073,191.06,190.94,16.4621668]
[1735232246749,6.0471,191.05,190.95,16.4621668]
[1735232249071,6.0471,191.05,190.94,16.4621668]
[1735232249273,20.0,191.02,190.93,17.24748857]
[1735232249450,20.0,191.02,190.88,2.05879632]
[1735232249451,1.6073,191.01,190.92,16.4621668]
[1735232249945,1.6073,191.01,190.93,16.4621668]
[1735232253070,1.6073,191.01,190.92,16.4621668]
[1735232253380,1.6073,191.01,190.91,16.4621668]
[1735232253568,1.6073,191.01,190.82,41.21807799]
[1735232253569,6.0471,191.0,190.89,16.4621668]
[1735232253763,20.0,190.97,190.88,16.4621668]
[1735232256363,20.0,190.97,190.89,16.4621668]
[1735232256889,20.0,190.97,190.89,0.12549]
[1735232257782,20.0,190.97,190.9,16.4621668]
[1735232258171,20.0,190.97,190.89,16.5876568]
[1735232258568,20.0,190.97,190.89,0.12549]
[1735232258865,1.6073,190.96,190.86,16.4621668]
[1735232259071,1.6073,190.96,190.87,0.12549]
[1735232259467,6.0471,190.95,190.87,0.12549]
[1735232260091,6.0471,190.95,190.87,0.91115388]
[1735232260585,6.0471,190.95,190.89,0.12549]
[1735232260788,6.0471,190.95,190.89,17.37320492]
[1735232262383,6.0471,190.95,190.89,17.24771492]
[1735232262580,6.0471,190.95,190.87,16.4621668]
[1735232262781,6.0471,190.95,190.88,0.78564494]
[1735232262975,6.0471,190.95,190.89,0.12549]
[1735232265871,6.0471,190.95,190.87,16.4621668]
[1735232266071,6.0471,190.95,190.88,17.24780261]
[1735232266801,6.0471,190.95,190.88,0.78563581]
[1735232268069,6.0471,190.95,190.88,17.24780261]
[1735232268272,6.0471,190.95,190.88,11.33955574]
[1735232268666,6.0471,190.95,190.88,0.12549]
[1735232270593,6.0471,190.95,190.88,10.55391993]
[1735232271090,6.0471,190.95,190.84,0.7855896]
[1735232271091,6.0471,190.95,190.89,10.55391993]
[1735232271603,6.0471,190.95,190.9,10.55391993]
[1735232271899,6.0471,190.95,190.92,10.55391993]
[1735232272073,6.0471,190.95,190.92,11.33932114]
[1735232272797,6.0471,190.95,190.91,10.55391993]
[1735232273093,6.0471,190.95,190.9,10.55391993]
[1735232273271,6.0471,190.95,190.91,0.12549]
[1735232279203,6.0471,190.95,190.9,0.78546988]
[1735232279409,6.0471,190.95,190.87,10.55391993]
[1735232280307,6.0471,190.95,190.88,0.78560629]
[1735232280500,6.0471,190.95,190.88,11.33952622]
[1735232281409,6.0471,190.95,190.91,10.55391993]
[1735232281590,1.6073,190.96,190.93,10.67940993]
[1735232281991,1.6073,190.96,190.94,10.55391993]
[1735232282306,1.6195,191.01,190.96,23.902374]
[1735232282514,1.6195,191.01,190.99,10.55391993]
[1735232282682,6.0509,191.04,191.01,0.12549]
[1735232282878,1.6195,191.05,191.02,10.55391993]
[1735232283078,1.6195,191.05,191.03,10.55391993]
[1735232283305,1.6195,191.05,191.01,34.45629393]
[1735232283678,1.6195,191.05,190.94,20.0]
[1735232283878,1.6195,191.05,190.99,0.12549]
[1735232284081,21.6195,191.05,190.99,0.12549]
[1735232289026,21.6195,191.05,190.97,16.47271257]
[1735232289199,21.6195,191.05,190.95,17.25784103]
[1735232289515,6.2708,191.04,190.93,16.47271257]
[1735232289710,20.0,191.01,190.93,16.47271257]
[1735232290013,20.0,191.01,190.94,17.25803355]
[1735232290419,20.0,191.01,190.95,16.47271257]
[1735232290619,20.0,191.01,190.97,0.12549]
[1735232292034,1.6195,191.05,190.97,0.12549]
[1735232292222,1.6106,191.1,191.05,0.12549]
[1735232292414,1.6106,191.1,191.05,16.59820257]
[1735232292619,1.6106,191.1,191.07,0.12549]
[1735232292813,1.6106,191.1,191.06,16.47271257]
[1735232293137,1.6106,191.1,191.05,16.47271257]
[1735232293533,1.6106,191.1,191.04,17.25756199]
[1735232293834,1.6106,191.1,190.94,143.9363]
[1735232293835,1.6106,191.1,191.03,16.47271257]
[1735232294051,1.6106,191.1,191.04,16.47271257]
[1735232294632,20.0,191.08,190.99,0.78489483]